fUSD/lending_fUSD_20250107
["ID","MTS","AMOUNT","RATE_DAILY","PERIOD"]
[347963470,1736250646067,-572.6259466,9.9e-05,2]
[347963473,1736250646078,-100780.53347196,9.9e-05,2]
[347963476,1736250646089,-6948.10947444,9.9e-05,2]
[347963489,1736250646159,-3536.68315,9.9e-05,2]
[347963491,1736250646174,-2970.2462318,9.9e-05,2]
[347963493,1736250646185,-1587.89459183,9.9e-05,2]
[347963495,1736250646196,-380.67764052,9.9e-05,2]
[347963498,1736250646207,-913.69201249,9.9e-05,2]
[347963533,1736250646463,-500.0,9.502e-05,2]
[347963535,1736250646473,-500.0,9.783e-05,2]
[347963537,1736250646482,-504.79558784,9.792e-05,2]
[347963539,1736250646491,-2262.70063267,9.9e-05,2]
[347963542,1736250646502,-11100.0,9.9e-05,2]
[347963545,1736250646514,-549.76340761,9.9e-05,2]
[347963548,1736250646525,-14483.36292114,9.9e-05,2]
[347963553,1736250646536,-21318.000008,9.9e-05,2]
[347963555,1736250646547,-267.13577388,9.9e-05,2]
[347963557,1736250646558,-354541.19242244,9.9e-05,2]
[347963559,1736250646567,-113796.33638503,9.9e-05,2]
[347963561,1736250646577,-251.8,9.9e-05,2]
[347963563,1736250646586,-150.0,9.91e-05,2]
[347963565,1736250646595,-150.0,9.932e-05,2]
[347963567,1736250646605,-500.0,9.973e-05,2]
[347963569,1736250646614,-209.72788315,9.973e-05,2]
[347963571,1736250646624,-152.78585004,9.973e-05,2]
[347963573,1736250646633,-159.79267289,9.973e-05,2]
[347963575,1736250646643,-206.86270912,9.973e-05,2]
[347963577,1736250646652,-305.91519575,9.973e-05,2]
[347963579,1736250646662,-500.0,9.973e-05,2]
[347963582,1736250646674,-500.0,9.973e-05,2]
[347963584,1736250646683,-500.0,9.973e-05,2]
[347963586,1736250646692,-353.35752574,9.973e-05,2]
[347963588,1736250646702,-315867.19301204,9.988e-05,2]
[347963593,1736250647802,-651.249959,8.219e-05,2]
[347963594,1736250647813,-4104.60583117,8.219e-05,2]
[347963595,1736250647824,-500.0,9.502e-05,2]
[347963596,1736250647833,-500.0,9.502e-05,2]
[347963597,1736250647842,-500.0,9.502e-05,2]
[347963598,1736250647854,-500.0,9.776e-05,2]
[347963599,1736250647864,-500.0,9.783e-05,2]
[347963600,1736250647874,-500.0,9.794e-05,2]
[347963601,1736250647884,-500.0,9.795e-05,2]
[347963602,1736250647895,-2076.4690573,9.988e-05,2]
[347963603,1736250647906,-502.7299304,9.988e-05,2]
[347963604,1736250647962,-28226.46591308,9.988e-05,2]
[347963605,1736250647974,-623.64337499,9.988e-05,2]
[347963606,1736250647986,-2170.16359181,9.988e-05,2]
[347963607,1736250647998,-1001.66288707,9.988e-05,2]
[347963608,1736250648010,-19347.00862358,9.988e-05,2]
[347963609,1736250648020,-500.0,9.999e-05,2]
[347963610,1736250648030,-39834.03816379,0.0001,2]
[347963611,1736250648042,-372.22790633,0.0001,2]
[347963612,1736250648061,-500.0,9.795e-05,2]
[347963613,1736250648070,-44700.0,0.0001,2]
[347963614,1736250648081,-18200.0000032,0.0001,2]
[347963615,1736250648093,-1123.04690619,0.0001,2]
[347963616,1736250648104,-47207.50000003,0.0001,2]
[347963617,1736250648116,-2794.44188734,0.0001,2]
[347963618,1736250648127,-3633.41128201,0.0001,2]
[347963619,1736250648138,-23264.44905001,0.0001,2]
[347963620,1736250648149,-199511.8134683,0.0001,2]
[347963621,1736250648160,-6320.63922755,0.0001,2]
[347963622,1736250648172,-9464.2851888,0.0001,2]
[347963623,1736250648185,-1085.6048777,0.0001,2]
[347963624,1736250648196,-1095.81777681,0.0001,2]
[347963625,1736250648208,-4076.19739696,0.0001,2]
[347963626,1736250648219,-60977.64884133,0.0001,2]
[347963627,1736250648230,-14838.8230273,0.0001,2]
[347963628,1736250648241,-4394.34582229,0.0001,2]
[347963629,1736250648252,-3158.75441404,0.0001,2]
[347963630,1736250648263,-7890.45969147,0.0001,2]
[347963631,1736250648274,-10659.910975,0.0001,2]
[347963632,1736250648286,-3507.46170282,0.0001,2]
[347963633,1736250648649,-440.65170116,9.502e-05,2]
[347963634,1736250648665,-59.34829884,9.502e-05,2]
[347963635,1736250648675,-284.1364083,9.783e-05,2]
[347963636,1736250648686,-215.8635917,9.783e-05,2]
[347963637,1736250648695,-35.96822671,0.0001,2]
[347963638,1736250648707,-5755.03962419,0.0001,2]
[347963639,1736250648718,-2913.99760497,0.0001,2]
[347963640,1736250648752,-888.11,9.502e-05,2]
[347963641,1736250648762,-500.0,9.783e-05,2]
[347963642,1736250648772,-1754.69000004,0.0001,2]
[347963643,1736250648783,-4090.91701531,0.0001,2]
[347963644,1736250648794,-808.79799,0.0001,2]
[347963645,1736250648806,-1627.05411205,0.0001,2]
[347963646,1736250648817,-17239.4759929,0.0001,2]
[347963647,1736250648828,-884.99999998,0.0001,2]
[347963648,1736250648840,-306.2759637,0.0001,2]
[347963649,1736250648853,-33000.2508894,0.0001,2]
[347963650,1736250648864,-727.2,0.0001,2]
[347963651,1736250648876,-104508.2516399,0.0001,2]
[347963652,1736250648887,-3657.69096788,0.0001,2]
[347963653,1736250648929,-420.0,9.776e-05,2]
[347963654,1736250648942,-468.11,9.776e-05,2]
[347963655,1736250648951,-52009.99989398,0.0001,2]
[347963656,1736250648963,-505.05,0.0001,2]
[347963657,1736250648976,-842.20452302,0.0001,2]
[347963658,1736250648987,-579.67404214,0.0001,2]
[347963659,1736250649840,-500.0,9.502e-05,2]
[347963660,1736250649859,-390.9475249,9.776e-05,2]
[347963661,1736250649883,-134.60831277,9.776e-05,2]
[347963662,1736250649897,-500.0,9.793e-05,2]
[347963663,1736250649912,-356.55668625,9.795e-05,2]
[347963664,1736250649930,-143.44331375,9.795e-05,2]
[347963665,1736250649945,-500.0,9.795e-05,2]
[347963666,1736250649961,-511.56677275,0.0001,2]
[347963667,1736250649979,-3117.67628156,0.0001,2]
[347963668,1736250650072,-500.0,9.783e-05,2]
[347963669,1736250650086,-1595.44638384,0.0001,2]
[347963670,1736250650103,-10519.82769349,0.0001,2]
[347963671,1736250650139,-836.71929606,0.0001,2]
[347963672,1736250650381,-51.10519522,0.0001,2]
[347963673,1736250650625,-5051.04224323,0.0001,2]
[347963674,1736250650640,-561.17,0.0001,2]
[347963675,1736250651181,-500.0,9.502e-05,2]
[347963676,1736250651191,-172.3,9.776e-05,2]
[347963677,1736250651223,-327.7,9.776e-05,2]
[347963678,1736250651232,-9.9699995,9.783e-05,2]
[347963679,1736250651244,-490.0300005,9.783e-05,2]
[347963680,1736250651254,-500.0,9.783e-05,2]
[347963681,1736250651263,-500.0,9.795e-05,2]
[347963682,1736250651273,-468.40208229,9.795e-05,2]
[347963683,1736250651282,-6800.09219156,0.0001,2]
[347963684,1736250651294,-300.75301768,0.0001,2]
[347963685,1736250651305,-2930.13098897,0.0001,2]
[347963686,1736250651317,-1578.74816839,0.0001,2]
[347963687,1736250651329,-2042.3655,0.0001,2]
[347963688,1736250651348,-500.0,9.783e-05,2]
[347963689,1736250651358,-3122.9314,0.0001,2]
[347963690,1736250651371,-1468.82114336,0.0001,2]
[347963691,1736250651385,-884.2268,0.0001,2]
[347963692,1736250651399,-310.4735,0.0001,2]
[347963693,1736250651415,-14137.80706718,0.0001,2]
[347963694,1736250651428,-911.08597899,0.0001,2]
[347963695,1736250651459,-4865.80002,0.0001,2]
[347963696,1736250651478,-500.0,9.502e-05,2]
[347963697,1736250651487,-145.9456534,0.0001,2]
[347963698,1736250651510,-835.29479819,0.0001,2]
[347963703,1736251609539,1896.0,0.00019,120]
[347963704,1736251611882,1896.0,0.0002,120]
[347963705,1736251698335,380.0,0.00018,120]
[347963706,1736251700688,380.0,0.00019,120]
[347963707,1736251703020,380.0,0.0002,120]
[347963708,1736251757031,150.0,0.00018,120]
[347963709,1736251759383,150.0,0.00019,120]
[347963721,1736251832365,-747.6,8.219e-05,2]
[347963722,1736251832376,-300.0,8.342e-05,2]
[347963723,1736251832386,-162.07,8.36e-05,2]
[347963724,1736251832395,-1582.91,8.405e-05,2]
[347963725,1736251832405,-150.0,8.494e-05,2]
[347963726,1736251832414,-300.0,8.767e-05,2]
[347963727,1736251832424,-900.0,8.768e-05,2]
[347963728,1736251832433,-500.0,8.768e-05,2]
[347963729,1736251832443,-500.0,8.768e-05,2]
[347963730,1736251832453,-500.0,8.768e-05,2]
[347963731,1736251832464,-474.75487728,8.768e-05,2]
[347963732,1736251832477,-250.0,8.786e-05,2]
[347963733,1736251832487,-873.88,8.79e-05,2]
[347963734,1736251832500,-978.7,8.79e-05,2]
[347963735,1736251832509,-878.17,8.79e-05,2]
[347963736,1736251832518,-771.75,8.79e-05,2]
[347963737,1736251832528,-150.0,8.825e-05,2]
[347963738,1736251832539,-150.0,8.869e-05,2]
[347963739,1736251832549,-5994.2666,8.9e-05,2]
[347963740,1736251832558,-150.0,8.965e-05,2]
[347963741,1736251832568,-150.0,8.967e-05,2]
[347963742,1736251832577,-150.0,8.997e-05,2]
[347963743,1736251832588,-150.0,9e-05,2]
[347963744,1736251832597,-150.0,9e-05,2]
[347963745,1736251832610,-150.0,9e-05,2]
[347963746,1736251832619,-150.0,9e-05,2]
[347963747,1736251832629,-150.0,9.001e-05,2]
[347963748,1736251832638,-874.03,9.002e-05,2]
[347963749,1736251832647,-1199.60075339,9.002e-05,2]
[347963750,1736251832708,-300.39924661,9.002e-05,2]
[347963751,1736251832718,-185.4,9.002e-05,2]
[347963752,1736251832727,-23900.0,9.002e-05,2]
[347963753,1736251832737,-1000.0,9.002e-05,2]
[347963754,1736251832746,-250.0,9.002e-05,2]
[347963755,1736251832756,-250.0,9.002e-05,2]
[347963756,1736251832766,-182.89,9.014e-05,2]
[347963757,1736251832776,-182.89,9.014e-05,2]
[347963758,1736251832785,-182.89,9.014e-05,2]
[347963759,1736251832794,-182.62,9.014e-05,2]
[347963760,1736251832803,-200.0,9.021e-05,2]
[347963761,1736251832813,-150.0,9.068e-05,2]
[347963762,1736251832822,-150.0,9.072e-05,2]
[347963763,1736251832831,-150.0,9.167e-05,2]
[347963764,1736251832841,-150.0,9.171e-05,2]
[347963765,1736251832849,-150.0,9.172e-05,2]
[347963766,1736251832859,-1354.04,9.178e-05,2]
[347963767,1736251832869,-1500.0,9.265e-05,2]
[347963768,1736251832878,-150.0,9.287e-05,2]
[347963769,1736251832887,-150.0,9.299e-05,2]
[347963770,1736251832897,-150.0,9.329e-05,2]
[347963771,1736251832906,-150.0,9.333e-05,2]
[347963772,1736251832915,-22449.0,9.391e-05,2]
[347963773,1736251832924,-2278.7209,9.402e-05,2]
[347963774,1736251832934,-1671.45,9.402e-05,2]
[347963775,1736251832943,-1500.0,9.403e-05,2]
[347963776,1736251832953,-3940.2325,9.403e-05,2]
[347963777,1736251832962,-1153.3597,9.403e-05,2]
[347963778,1736251832971,-150.0,9.434e-05,2]
[347963779,1736251832980,-150.0,9.449e-05,2]
[347963780,1736251832989,-150.0,9.452e-05,2]
[347963781,1736251832999,-150.0,9.484e-05,2]
[347963782,1736251833008,-150.0,9.493e-05,2]
[347963783,1736251833018,-150.0,9.5e-05,2]
[347963784,1736251833027,-150.0,9.5e-05,2]
[347963785,1736251833037,-1242.8,9.502e-05,2]
[347963786,1736251833047,-816.94,9.502e-05,2]
[347963787,1736251833056,-500.0,9.502e-05,2]
[347963788,1736251833066,-500.0,9.502e-05,2]
[347963789,1736251833075,-879.1,9.502e-05,2]
[347963790,1736251833084,-595.31,9.502e-05,2]
[347963791,1736251833094,-563.99,9.502e-05,2]
[347963792,1736251833106,-500.0,9.502e-05,2]
[347963793,1736251833115,-500.0,9.502e-05,2]
[347963794,1736251833125,-500.0,9.502e-05,2]
[347963795,1736251833134,-797.83,9.502e-05,2]
[347963796,1736251833145,-500.0,9.502e-05,2]
[347963797,1736251833155,-500.0,9.502e-05,2]
[347963798,1736251833165,-1064.64,9.502e-05,2]
[347963799,1736251833174,-500.0,9.502e-05,2]
[347963800,1736251833184,-693.99,9.502e-05,2]
[347963801,1736251833194,-500.0,9.502e-05,2]
[347963802,1736251833204,-664.54,9.502e-05,2]
[347963803,1736251833214,-559.8,9.502e-05,2]
[347963804,1736251833224,-930.85,9.502e-05,2]
[347963805,1736251833234,-500.0,9.502e-05,2]
[347963806,1736251833244,-500.0,9.502e-05,2]
[347963807,1736251833254,-665.31,9.502e-05,2]
[347963808,1736251833263,-391.69210684,9.502e-05,2]
[347963809,1736251833273,-500.0,9.502e-05,2]
[347963810,1736251833283,-500.0,9.502e-05,2]
[347963811,1736251833292,-1033.35,9.502e-05,2]
[347963823,1736251833440,-547.7,9.502e-05,2]
[347963825,1736251833452,-500.0,9.502e-05,2]
[347963827,1736251833461,-213.11277183,9.502e-05,2]
[347963829,1736251833474,-286.88722817,9.502e-05,2]
[347963831,1736251833483,-500.0,9.502e-05,2]
[347963833,1736251833493,-711.8,9.502e-05,2]
[347963835,1736251833502,-578.99,9.502e-05,2]
[347963837,1736251833511,-500.0,9.502e-05,2]
[347963839,1736251833521,-500.0,9.502e-05,2]
[347963841,1736251833530,-500.0,9.502e-05,2]
[347963843,1736251833542,-500.0,9.502e-05,2]
[347963845,1736251833551,-500.0,9.502e-05,2]
[347963847,1736251833561,-500.0,9.502e-05,2]
[347963849,1736251833570,-551.57,9.502e-05,2]
[347963851,1736251833579,-760.39,9.502e-05,2]
[347963853,1736251833591,-500.0,9.502e-05,2]
[347963855,1736251833601,-500.0,9.502e-05,2]
[347963857,1736251833617,-951.94,9.502e-05,2]
[347963859,1736251833628,-599.62,9.502e-05,2]
[347963861,1736251833638,-500.0,9.502e-05,2]
[347963863,1736251833647,-500.0,9.502e-05,2]
[347963865,1736251833656,-785.16,9.502e-05,2]
[347963867,1736251833666,-815.78,9.502e-05,2]
[347963869,1736251833675,-693.36,9.502e-05,2]
[347963871,1736251833685,-500.0,9.502e-05,2]
[347963873,1736251833696,-714.81,9.502e-05,2]
[347963875,1736251833706,-500.0,9.502e-05,2]
[347963877,1736251833715,-586.67,9.502e-05,2]
[347963879,1736251833725,-500.0,9.502e-05,2]
[347963881,1736251833734,-500.0,9.502e-05,2]
[347963883,1736251833744,-500.0,9.502e-05,2]
[347963885,1736251833754,-500.0,9.502e-05,2]
[347963887,1736251833763,-500.0,9.502e-05,2]
[347963889,1736251833773,-530.62,9.502e-05,2]
[347963891,1736251833783,-500.0,9.502e-05,2]
[347963893,1736251833793,-500.0,9.502e-05,2]
[347963895,1736251833803,-500.0,9.502e-05,2]
[347963897,1736251833812,-700.91,9.502e-05,2]
[347963899,1736251833821,-500.0,9.502e-05,2]
[347963901,1736251833830,-500.0,9.502e-05,2]
[347963903,1736251833840,-695.68,9.502e-05,2]
[347963905,1736251833849,-500.0,9.502e-05,2]
[347963907,1736251833859,-500.0,9.502e-05,2]
[347963909,1736251833868,-500.0,9.502e-05,2]
[347963911,1736251833878,-830.18,9.502e-05,2]
[347963913,1736251833887,-1001.46,9.502e-05,2]
[347963915,1736251833897,-1053.73,9.502e-05,2]
[347963917,1736251833906,-1115.88,9.502e-05,2]
[347963919,1736251833916,-500.0,9.502e-05,2]
[347963921,1736251833925,-500.0,9.502e-05,2]
[347963923,1736251833934,-500.0,9.502e-05,2]
[347963925,1736251833944,-500.0,9.502e-05,2]
[347963926,1736251833953,-500.0,9.502e-05,2]
[347963928,1736251833963,-500.0,9.502e-05,2]
[347963930,1736251833973,-500.0,9.502e-05,2]
[347963932,1736251833983,-1064.99,9.502e-05,2]
[347963934,1736251833993,-500.0,9.502e-05,2]
[347963937,1736251834002,-500.0,9.502e-05,2]
[347963938,1736251834012,-6626.95,9.503e-05,2]
[347963940,1736251834021,-667.41,9.503e-05,2]
[347963942,1736251834030,-828.22,9.503e-05,2]
[347963944,1736251834039,-640.39,9.503e-05,2]
[347963946,1736251834050,-912.86,9.503e-05,2]
[347963949,1736251834059,-500.0,9.503e-05,2]
[347963951,1736251834070,-500.0,9.503e-05,2]
[347963952,1736251834079,-1490.49,9.503e-05,2]
[347963954,1736251834089,-1814.92,9.503e-05,2]
[347963956,1736251834099,-2085.11,9.503e-05,2]
[347963959,1736251834109,-1441.65,9.503e-05,2]
[347963961,1736251834119,-3631.68,9.503e-05,2]
[347963962,1736251834128,-1937.85,9.503e-05,2]
[347963965,1736251834138,-2060.54,9.503e-05,2]
[347963967,1736251834148,-4055.1,9.503e-05,2]
[347963968,1736251834158,-500.0,9.503e-05,2]
[347963970,1736251834167,-500.0,9.503e-05,2]
[347963972,1736251834177,-4940.83,9.503e-05,2]
[347963974,1736251834186,-150.0,9.505e-05,2]
[347963976,1736251834196,-150.0,9.568e-05,2]
[347963978,1736251834205,-150.0,9.592e-05,2]
[347963980,1736251834214,-150.0,9.594e-05,2]
[347963982,1736251834223,-150.0,9.611e-05,2]
[347963984,1736251834233,-420.0,9.644e-05,2]
[347963986,1736251834242,-150.0,9.667e-05,2]
[347963988,1736251834252,-1320.0593,9.676e-05,2]
[347963990,1736251834261,-150.0,9.687e-05,2]
[347963992,1736251834270,-676.4175,9.696e-05,2]
[347963994,1736251834279,-500.0,9.773e-05,2]
[347963996,1736251834288,-2209.85,9.774e-05,2]
[347963998,1736251834298,-500.0,9.774e-05,2]
[347964000,1736251834308,-1084.69,9.774e-05,2]
[347964002,1736251834317,-4184.4,9.774e-05,2]
[347964004,1736251834327,-2152.41,9.774e-05,2]
[347964006,1736251834336,-1830.55,9.774e-05,2]
[347964008,1736251834346,-6251.62,9.774e-05,2]
[347964010,1736251834355,-1989.52,9.774e-05,2]
[347964012,1736251834365,-1554.72,9.774e-05,2]
[347964014,1736251834375,-4987.46,9.774e-05,2]
[347964016,1736251834387,-8849.91050916,9.774e-05,2]
[347964018,1736251834402,-10500.64949084,9.774e-05,2]
[347964020,1736251834412,-500.0,9.774e-05,2]
[347964022,1736251834421,-1911.62,9.774e-05,2]
[347964024,1736251834431,-1375.09,9.774e-05,2]
[347964026,1736251834441,-500.0,9.774e-05,2]
[347964028,1736251834451,-5662.37,9.774e-05,2]
[347964030,1736251834460,-500.0,9.774e-05,2]
[347964032,1736251834469,-2128.82,9.774e-05,2]
[347964034,1736251834478,-5292.56,9.774e-05,2]
[347964036,1736251834488,-3576.08,9.774e-05,2]
[347964038,1736251834497,-2376.5,9.774e-05,2]
[347964040,1736251834506,-3049.65,9.774e-05,2]
[347964042,1736251834515,-4551.71,9.774e-05,2]
[347964044,1736251834524,-1626.85,9.774e-05,2]
[347964046,1736251834533,-3036.23,9.774e-05,2]
[347964048,1736251834545,-500.0,9.774e-05,2]
[347964049,1736251834555,-4132.18,9.774e-05,2]
[347964050,1736251834564,-9640.77,9.774e-05,2]
[347964051,1736251834573,-5327.4,9.774e-05,2]
[347964052,1736251834583,-6295.81,9.774e-05,2]
[347964053,1736251834593,-2046.66,9.774e-05,2]
[347964054,1736251834602,-1745.8,9.774e-05,2]
[347964055,1736251834613,-527.5,9.774e-05,2]
[347964056,1736251834623,-2894.85,9.774e-05,2]
[347964057,1736251834632,-1454.19,9.774e-05,2]
[347964058,1736251834641,-500.0,9.774e-05,2]
[347964059,1736251834651,-9618.9562951,9.775e-05,2]
[347964060,1736251834660,-500.0,9.775e-05,2]
[347964061,1736251834669,-539.78,9.775e-05,2]
[347964062,1736251834679,-500.0,9.775e-05,2]
[347964063,1736251834687,-1675.75,9.775e-05,2]
[347964064,1736251834696,-687.62,9.775e-05,2]
[347964065,1736251834705,-500.0,9.775e-05,2]
[347964066,1736251834714,-500.0,9.775e-05,2]
[347964067,1736251834723,-1359.94,9.775e-05,2]
[347964068,1736251834732,-500.0,9.775e-05,2]
[347964069,1736251834741,-500.0,9.775e-05,2]
[347964070,1736251834749,-500.0,9.775e-05,2]
[347964071,1736251834758,-500.0,9.775e-05,2]
[347964072,1736251834767,-500.0,9.775e-05,2]
[347964073,1736251834776,-500.0,9.775e-05,2]
[347964074,1736251834784,-500.0,9.775e-05,2]
[347964075,1736251834794,-751.14,9.775e-05,2]
[347964076,1736251834803,-500.0,9.775e-05,2]
[347964077,1736251834812,-503.8079036,9.775e-05,2]
[347964078,1736251834822,-500.0,9.775e-05,2]
[347964079,1736251834831,-500.0,9.775e-05,2]
[347964080,1736251834841,-500.0,9.775e-05,2]
[347964081,1736251834851,-1194.75,9.775e-05,2]
[347964082,1736251834861,-500.0,9.775e-05,2]
[347964083,1736251834871,-500.0,9.775e-05,2]
[347964084,1736251834880,-500.0,9.775e-05,2]
[347964085,1736251834890,-500.0,9.775e-05,2]
[347964086,1736251834899,-500.0,9.775e-05,2]
[347964087,1736251834909,-500.0,9.775e-05,2]
[347964088,1736251834918,-500.0,9.775e-05,2]
[347964089,1736251834927,-500.0,9.775e-05,2]
[347964090,1736251834936,-500.0,9.775e-05,2]
[347964091,1736251834945,-500.0,9.775e-05,2]
[347964092,1736251834954,-500.0,9.775e-05,2]
[347964093,1736251834963,-500.0,9.775e-05,2]
[347964094,1736251834972,-1673.35,9.775e-05,2]
[347964095,1736251834982,-500.0,9.775e-05,2]
[347964096,1736251834991,-500.0,9.775e-05,2]
[347964097,1736251835000,-500.0,9.775e-05,2]
[347964098,1736251835009,-500.0,9.775e-05,2]
[347964099,1736251835018,-500.0,9.775e-05,2]
[347964100,1736251835027,-986.58,9.775e-05,2]
[347964101,1736251835036,-500.0,9.775e-05,2]
[347964102,1736251835045,-500.0,9.775e-05,2]
[347964103,1736251835054,-500.0,9.775e-05,2]
[347964104,1736251835064,-589.37,9.775e-05,2]
[347964105,1736251835073,-500.0,9.775e-05,2]
[347964106,1736251835082,-1120.36,9.775e-05,2]
[347964107,1736251835091,-500.0,9.775e-05,2]
[347964108,1736251835100,-500.0,9.775e-05,2]
[347964109,1736251835111,-500.0,9.775e-05,2]
[347964110,1736251835120,-500.0,9.775e-05,2]
[347964111,1736251835129,-1356.75,9.775e-05,2]
[347964112,1736251835138,-711.07,9.775e-05,2]
[347964113,1736251835147,-500.0,9.775e-05,2]
[347964114,1736251835156,-500.0,9.775e-05,2]
[347964115,1736251835165,-500.0,9.775e-05,2]
[347964116,1736251835174,-500.0,9.775e-05,2]
[347964117,1736251835297,-500.0,9.775e-05,2]
[347964118,1736251835307,-500.0,9.775e-05,2]
[347964119,1736251835316,-500.0,9.775e-05,2]
[347964120,1736251835325,-647.0,9.775e-05,2]
[347964121,1736251835334,-500.0,9.775e-05,2]
[347964122,1736251835343,-257.33644815,9.775e-05,2]
[347964123,1736251835353,-500.0,9.775e-05,2]
[347964124,1736251835363,-500.0,9.775e-05,2]
[347964125,1736251835372,-500.0,9.775e-05,2]
[347964126,1736251835383,-209.67633073,9.775e-05,2]
[347964127,1736251835393,-500.0,9.775e-05,2]
[347964128,1736251835402,-500.0,9.775e-05,2]
[347964129,1736251835411,-652.26,9.775e-05,2]
[347964130,1736251835421,-500.0,9.775e-05,2]
[347964131,1736251835430,-618.93,9.775e-05,2]
[347964132,1736251835439,-500.0,9.775e-05,2]
[347964133,1736251835448,-500.0,9.775e-05,2]
[347964134,1736251835457,-500.0,9.775e-05,2]
[347964135,1736251835466,-500.0,9.775e-05,2]
[347964136,1736251835476,-500.0,9.775e-05,2]
[347964137,1736251835484,-500.0,9.775e-05,2]
[347964138,1736251835494,-500.0,9.775e-05,2]
[347964139,1736251835503,-500.0,9.775e-05,2]
[347964140,1736251835512,-500.0,9.775e-05,2]
[347964141,1736251835521,-500.0,9.775e-05,2]
[347964142,1736251835530,-500.0,9.775e-05,2]
[347964143,1736251835543,-500.0,9.775e-05,2]
[347964144,1736251835553,-500.0,9.775e-05,2]
[347964145,1736251835562,-500.0,9.775e-05,2]
[347964146,1736251835571,-500.0,9.775e-05,2]
[347964147,1736251835581,-500.0,9.775e-05,2]
[347964148,1736251835590,-1215.21,9.775e-05,2]
[347964149,1736251835599,-500.0,9.775e-05,2]
[347964150,1736251835609,-500.0,9.775e-05,2]
[347964151,1736251835619,-500.0,9.775e-05,2]
[347964152,1736251835628,-500.0,9.775e-05,2]
[347964153,1736251835637,-500.0,9.775e-05,2]
[347964154,1736251835646,-500.0,9.775e-05,2]
[347964155,1736251835655,-500.0,9.775e-05,2]
[347964156,1736251835665,-500.0,9.775e-05,2]
[347964157,1736251835674,-500.0,9.775e-05,2]
[347964158,1736251835683,-500.0,9.775e-05,2]
[347964159,1736251835692,-500.0,9.775e-05,2]
[347964160,1736251835701,-500.0,9.775e-05,2]
[347964161,1736251835711,-500.0,9.775e-05,2]
[347964162,1736251835720,-500.0,9.775e-05,2]
[347964163,1736251835729,-500.0,9.775e-05,2]
[347964164,1736251835739,-500.0,9.775e-05,2]
[347964165,1736251835748,-402.82013189,9.775e-05,2]
[347964166,1736251835757,-500.0,9.775e-05,2]
[347964167,1736251835766,-500.0,9.775e-05,2]
[347964168,1736251835775,-500.0,9.775e-05,2]
[347964169,1736251835784,-500.0,9.775e-05,2]
[347964170,1736251835793,-500.0,9.775e-05,2]
[347964171,1736251835803,-500.0,9.775e-05,2]
[347964172,1736251835812,-500.0,9.775e-05,2]
[347964173,1736251835822,-1435.94,9.775e-05,2]
[347964174,1736251835831,-500.0,9.775e-05,2]
[347964175,1736251835840,-500.0,9.775e-05,2]
[347964176,1736251835849,-428.65465859,9.775e-05,2]
[347964177,1736251835859,-620.94,9.775e-05,2]
[347964178,1736251835868,-500.58510681,9.775e-05,2]
[347964179,1736251835877,-500.0,9.775e-05,2]
[347964180,1736251835887,-500.0,9.775e-05,2]
[347964181,1736251835896,-500.0,9.775e-05,2]
[347964182,1736251835905,-498.52385353,9.775e-05,2]
[347964183,1736251835914,-500.0,9.775e-05,2]
[347964184,1736251835923,-1430.95,9.775e-05,2]
[347964185,1736251835932,-500.0,9.775e-05,2]
[347964186,1736251835941,-500.0,9.775e-05,2]
[347964187,1736251835950,-500.0,9.775e-05,2]
[347964188,1736251835960,-502.02292164,9.775e-05,2]
[347964189,1736251835969,-500.0,9.775e-05,2]
[347964190,1736251835978,-500.0,9.775e-05,2]
[347964191,1736251835988,-500.0,9.775e-05,2]
[347964192,1736251835997,-500.0,9.775e-05,2]
[347964193,1736251836007,-500.0,9.775e-05,2]
[347964194,1736251836016,-500.0,9.775e-05,2]
[347964195,1736251836025,-500.0,9.775e-05,2]
[347964196,1736251836035,-500.0,9.775e-05,2]
[347964197,1736251836044,-500.0,9.775e-05,2]